Cogmind - Beta 14 @@@ ROGUE MODE // 2025.01.16 @ 23:06:14 // Winter2019/RPGLIKE Player: Alien Result: Core destroyed Performance ------------- Evolutions (2) 1000 Regions Visited (5) 1000 Robots Destroyed (25) 125 Value Destroyed (410) 410 Prototype IDs (26) 520 Alien Tech Used (0) 0 Bonus (300) 300 TOTAL SCORE: 3355 Bonus ------- Aligned with FarCom 300 Cogmind --------- Core Integrity 0/600 Matter 268/400 Energy 238/510 System Corruption 0% Temperature Critical (1440) Movement Treading (160) Location -8/Materials Parts ------- > --- POWER (1) -------- Heavy Deuterium Engine > --- PROPULSION (3) --- Light Treads Light Treads > --- UTILITY (3) ------ Large Battery Medium Matter Pod Improved Terrain Scanner > --- WEAPON (3) ------- Plasma Cannon Plasma Cannon Plasma Cannon > --- INVENTORY (1) ---- Hacking Suite Peak State ------------ > --- POWER ------------ Heavy Deuterium Engine > --- PROPULSION ------- Light Treads Light Treads > --- UTILITY ---------- Large Battery Medium Matter Pod Improved Terrain Scanner > --- WEAPON ----------- Beamcaster AWS/Thermal > --- INVENTORY -------- Hacking Suite [Rating: 33] Favorites ----------- Power Ion Engine Engine Ion Engine Propulsion Light Treads Treads Light Treads Utility Large Battery Device Improved Terrain Scanner Storage Large Battery Weapon Small Laser Energy Gun Small Laser Energy Cannon Plasma Cannon Ballistic Cannon Light Cannon Build | -11 -10 -10 -10 -9 -8 ------- Run | Yrd Mat Min Exi Min Mat Slots Evolved 6 | 4 . . . 2 . Power . | . . . . . . Propulsion 2 | 1 . . . 1 . Utility 2 | 2 . . . . . Weapon 2 | 1 . . . 1 . Parts Attached 18 | 6 6 . 1 1 4 Power 3 | 1 1 . . . 1 Engine 3 | 1 1 . . . 1 Core . | . . . . . . Reactor . | . . . . . . Propulsion 2 | 2 . . . . . Treads 2 | 2 . . . . . Leg . | . . . . . . Wheel . | . . . . . . Hover . | . . . . . . Flight . | . . . . . . Utility 5 | 1 4 . . . . Device 1 | 1 . . . . . Storage 4 | . 4 . . . . Processor . | . . . . . . Hackware . | . . . . . . Protection . | . . . . . . Artifact . | . . . . . . Weapon 8 | 2 1 . 1 1 3 Energy Gun 4 | 2 . . 1 1 . Energy Cannon 3 | . . . . . 3 Ballistic Gun . | . . . . . . Ballistic Cannon 1 | . 1 . . . . Launcher . | . . . . . . Special Weapon . | . . . . . . Impact Weapon . | . . . . . . Slashing Weapon . | . . . . . . Piercing Weapon . | . . . . . . Special Melee Weapon . | . . . . . . Unidentified Prototypes 1 | . . . . . 1 Parts Lost . | . . . . . . Power . | . . . . . . Propulsion . | . . . . . . Utility . | . . . . . . Weapon . | . . . . . . Highest Loss Streak . | . . . . . . To Critical Strikes . | . . . . . . Average Slot Usage (%) 93 | . 95 100 94 77 88 Engine 11 | . 12 12 12 10 10 Treads 24 | . 25 25 25 20 20 Device 11 | . 12 12 12 10 10 Storage 21 | . 20 25 25 20 20 Energy Gun 16 | . 21 12 12 17 2 Energy Cannon 1 | . . . . . 25 Ballistic Cannon 4 | . 3 12 6 . . Peak Build Rating 33 | 8 10 10 24 29 33 Average Rating 13 | 5 9 10 16 27 24 On Entrance 13 | . 8 10 10 24 29 Naked Turns . | . . . . . . Heaviest Build 38 | 6 15 15 19 24 38 Greatest Support 45 | 45 45 45 45 45 45 Greatest Overweight (x) . | . . . . . . Average Overweight (x) . | . . . . . . Largest Inventory Capacity 1 | 1 1 1 1 1 1 Average Capacity . | . 1 1 1 1 1 Most Carried 1 | 1 1 1 1 1 1 Average Carried . | . 1 1 1 1 1 Final Capacity 1 | 1 1 1 1 1 1 Final Carried 1 | 1 1 1 1 1 1 Class Distribution -------------------- 84% | Mutant 15% | Skirmisher Dominant Class ---------------- Mutant | -10/Materials Mutant | -10/Mines Mutant | -10/Exiles Skirmisher | -9/Mines Skirmisher | -8/Materials Resources | -11 -10 -10 -10 -9 -8 ----------- Run | Yrd Mat Min Exi Min Mat Matter Collected 494 | 260 128 9 . 64 33 Remotely . | . . . . . . Salvage Created 941 | 90 277 9 . 334 231 Parts 35 | 2 14 2 . 14 3 Haulers Intercepted 1 | . 1 . . . . Recyclers Shooed 1 | 1 . . . . . Parts Field Recycled . | . . . . . . Retrieved Matter . | . . . . . . Parts Self-Destructed . | . . . . . . Prevented . | . . . . . . Kills | -11 -10 -10 -10 -9 -8 ------- Run | Yrd Mat Min Exi Min Mat Combat Hostiles Destroyed 10 | . 3 . . 3 4 Guns 6 | . 3 . . 3 . Cannons 4 | . . . . . 4 Classes Destroyed 9 | 2 6 . . 1 . Worker 3 | . 1 . . 2 . Builder 2 | . . . . 2 . Tunneler 2 | 1 . 1 . . . Hauler 1 | . 1 . . . . Recycler 3 | 1 . . . 2 . Operator 2 | . 2 . . . . Watcher 2 | . 1 . . . 1 Swarmer 4 | . 1 . . 1 2 Grunt 6 | . 2 . . 2 2 Best Kill Streak 8 | 1 1 1 . 8 2 Combat Bots Only 2 | . 1 . . 2 2 Max Kills in Single Turn 1 | 1 1 1 . 1 1 Gunslinging . | . . . . . . Exploded . | . . . . . . Melee . | . . . . . . Uniques/NPCs Destroyed . | . . . . . . Combat | -11 -10 -10 -10 -9 -8 -------- Run | Yrd Mat Min Exi Min Mat Hostile Shots Fired 79 | . 17 . . 1 61 Missed 12 | . 8 . . . 4 Damage Taken 982 | . 188 . . 7 787 Core 795 | . 147 . . 5 643 Absorbed by Shields . | . . . . . . Redirected to Core 624 | . 131 . . 5 488 Core Remaining (%) 100 | 100 . . . 100 . Volleys Fired 73 | 14 30 . . 14 15 Largest 3 | 2 2 . . 1 3 Hottest 240 | 80 80 . . 75 240 Shots Fired 143 | 16 60 . . 25 42 Gun 93 | 16 52 . . 25 . Cannon 50 | . 8 . . . 42 Launcher . | . . . . . . Special . | . . . . . . Kinetic 8 | . 8 . . . . Thermal 135 | 16 52 . . 25 42 Explosive . | . . . . . . Electromagnetic . | . . . . . . Robot Hit Streak 9 | 5 5 . . 9 4 Robot Miss Streak 8 | 2 3 . . 4 8 Penetration Max . | . . . . . . Secondary Targets . | . . . . . . Autonomous 11 | . . . . 11 . Shots Hit Robots 72 | 12 30 . . 17 13 Core Hits 34 | 3 14 1 . 8 8 Critical Kills . | . . . . . . Critical Parts Destroyed . | . . . . . . Critical Strikes 3 | . 1 . . 2 . Burn 2 | . . . . 2 . Blast 1 | . 1 . . . . Melee Attacks . | . . . . . . Impact . | . . . . . . Slashing . | . . . . . . Piercing . | . . . . . . Sneak Attacks . | . . . . . . Combat Hostiles . | . . . . . . Follow-up Attacks . | . . . . . . Damage Inflicted 1396 | 131 346 6 . 420 493 Guns 843 | 131 307 . . 405 . Cannons 524 | . 34 . . . 490 Explosions . | . . . . . . Melee . | . . . . . . Ramming 29 | . 5 6 . 15 3 Kinetic 34 | . 34 . . . . Thermal 1333 | 131 307 . . 405 490 Explosive . | . . . . . . Electromagnetic . | . . . . . . Impact . | . . . . . . Slashing . | . . . . . . Piercing . | . . . . . . Highest Corruption . | . . . . . . Average Corruption . | . . . . . . Corruption Purged . | . . . . . . Corruption Blocked . | . . . . . . Overload Shots . | . . . . . . Overflow Damage 6 | . . . . . 6 Projectiles 6 | . . . . . 6 Explosions . | . . . . . . Melee . | . . . . . . Knockbacks 1 | . . 1 . . . Impact 1 | . . 1 . . . Kinetic . | . . . . . . Secondary . | . . . . . . Self-Inflicted Damage . | . . . . . . Shots . | . . . . . . Rammed 6 | . 2 . . 3 1 Targets Rammed 8 | . 2 1 . 4 1 Kicked . | . . . . . . Crushed 2 | . . 1 . 1 . Highest Temperature 1440 | 36 111 . . . 1440 Average Temperature 187 | 20 37 . . . 498 Received Heat Transfer 405 | . 63 . . . 342 Effects 14 | . . . . . 14 Shutdowns 2 | . . . . . 2 Matter Decay 3 | . . . . . 3 Short Circuit 1 | . . . . . 1 Damage (minor) 6 | . . . . . 6 Damage (major) 1 | . . . . . 1 Damage (core) 1 | . . . . . 1 Siege Activations . | . . . . . . Robots Corrupted . | . . . . . . Combat Hostiles . | . . . . . . Parts Fried . | . . . . . . Impact Corruptions . | . . . . . . Robots Melted . | . . . . . . Combat Hostiles . | . . . . . . Parts Melted 5 | . 3 . . . 2 Heat Transferred 2727 | 300 700 . . 777 950 Parts Sabotaged . | . . . . . . Parts Stolen . | . . . . . . Parts Stripped . | . . . . . . Power Chain Reactions . | . . . . . . Alert | -11 -10 -10 -10 -9 -8 ------- Run | Yrd Mat Min Exi Min Mat Peak Influence 171 | 10 128 14 . 105 171 Initial 40 | . 6 9 . . 40 Average 35 | 7 35 11 . 54 62 Maximum Alert Level . | . . . . . . Low Security (%) 100 | 100 100 100 . 100 100 Level 1 . | . . . . . . Level 2 . | . . . . . . Level 3 . | . . . . . . Level 4 . | . . . . . . Level 5 . | . . . . . . High Security . | . . . . . . Max Security . | . . . . . . Squads Dispatched 6 | . 3 . . 1 2 Investigation 1 | . 1 . . . . Extermination . | . . . . . . Reinforcement 4 | . 2 . . 1 1 Assault . | . . . . . . Garrison 1 | . . . . . 1 Intercept . | . . . . . . Searches Triggered . | . . . . . . Construction Impeded 1 | . . . . 1 . Haulers Reinforced . | . . . . . . Active Scanning Responses . | . . . . . . Cargo Convoy Interrupts . | . . . . . . Stealth | -11 -10 -10 -10 -9 -8 --------- Run | Yrd Mat Min Exi Min Mat Distress Signals 1 | . 1 . . . . Communications Jammed . | . . . . . . Distress Signals . | . . . . . . Times Spotted 25 | . 12 . . 5 8 Peak Tracking Total 6 | . 3 . . 3 6 Tactical Retreats . | . . . . . . Traps | -11 -10 -10 -10 -9 -8 ------- Run | Yrd Mat Min Exi Min Mat Traps Triggered 3 | . 3 . . . . Indirectly . | . . . . . . Trap Hack Attempts . | . . . . . . Triggered . | . . . . . . Disarmed . | . . . . . . Reprogrammed . | . . . . . . Reused . | . . . . . . Traps Extracted . | . . . . . . Installed . | . . . . . . Triggered . | . . . . . . Machines | -11 -10 -10 -10 -9 -8 ---------- Run | Yrd Mat Min Exi Min Mat Machines Disabled 2 | . 1 . . . 1 Max in Single Turn 1 | . 1 . . . 1 Machines Repaired . | . . . . . . Machines Dismantled . | . . . . . . Machines Sabotaged . | . . . . . . Overloaded Fab Kills . | . . . . . . Hacking | -11 -10 -10 -10 -9 -8 --------- Run | Yrd Mat Min Exi Min Mat Machines Accessed 4 | . 3 . 1 . . Terminals 3 | . 3 . . . . Fabricators . | . . . . . . Repair Stations . | . . . . . . Recycling Units . | . . . . . . Scanalyzers . | . . . . . . Garrison Access . | . . . . . . Total Hacks 8 | . 7 . 1 . . Successful 4 | . 3 . 1 . . Failed 3 | . 3 . . . . Catastrophic . | . . . . . . Database Lockouts 1 | . 1 . . . . Manual 10 | . 9 . 1 . . Terminals 7 | . 7 . . . . Fabricators . | . . . . . . Repair Stations . | . . . . . . Recycling Units . | . . . . . . Scanalyzers . | . . . . . . Garrison Access . | . . . . . . Terminal Hacks 4 | . 3 . 1 . . Robot Analysis 1 | . 1 . . . . Prototype ID Bank 1 | . 1 . . . . Zone Layout 1 | . 1 . . . . Derelict Proto ID Bank 1 | . . . 1 . . Fabricator Hacks . | . . . . . . Repair Station Hacks . | . . . . . . Recycling Unit Hacks . | . . . . . . Scanalyzer . | . . . . . . Garrison Access Hacks . | . . . . . . Unauthorized Hacks . | . . . . . . Terminals . | . . . . . . Fabricators . | . . . . . . Repair Stations . | . . . . . . Recycling Units . | . . . . . . Scanalyzers . | . . . . . . Garrison Access . | . . . . . . Data Cores Recovered . | . . . . . . Used . | . . . . . . Hacking Detections 3 | . 3 . . . . Full Trace Events 1 | . 1 . . . . Feedback Events . | . . . . . . Feedback Blocked . | . . . . . . Robot Schematics Acquired . | . . . . . . Robots Built . | . . . . . . Authchips . | . . . . . . Time . | . . . . . . Total Robot Build Rating . | . . . . . . Part Schematics Acquired . | . . . . . . Parts Built . | . . . . . . Authchips . | . . . . . . Time . | . . . . . . Total Part Build Rating . | . . . . . . Parts Repaired . | . . . . . . Time . | . . . . . . Parts Recycled . | . . . . . . Recycled Matter . | . . . . . . Retrieved Matter . | . . . . . . Retrieved Components . | . . . . . . Parts Scanalyzed . | . . . . . . Part Schematics Acquired . | . . . . . . Parts Damaged . | . . . . . . Bothacking | -11 -10 -10 -10 -9 -8 ------------ Run | Yrd Mat Min Exi Min Mat Used RIF Installer . | . . . . . . Robots Hacked . | . . . . . . Non-combat . | . . . . . . Combat . | . . . . . . Robot Hacks Applied . | . . . . . . Relay Couplers Released . | . . . . . . Fabnet Peak Effective % . | . . . . . . Robots Rewired . | . . . . . . Allies Hacked . | . . . . . . Hacks Repelled . | . . . . . . Allies | -11 -10 -10 -10 -9 -8 -------- Run | Yrd Mat Min Exi Min Mat Total Allies . | . . . . . . Largest Group . | . . . . . . Highest-Rated Group . | . . . . . . Highest-Rated Ally . | . . . . . . Total Orders . | . . . . . . Ally Attacks . | . . . . . . Total Damage . | . . . . . . Kills . | . . . . . . Allies Corrupted . | . . . . . . Allies Melted . | . . . . . . Intel | -11 -10 -10 -10 -9 -8 ------- Run | Yrd Mat Min Exi Min Mat Robot Analysis Total 1 | . 1 . . . . Derelict Logs Recovered . | . . . . . . Drone Launches . | . . . . . . Drone Recoveries . | . . . . . . Exploration | -11 -10 -10 -10 -9 -8 ------------- Run | Yrd Mat Min Exi Min Mat Turns Passed 2163 | 161 1112 168 387 198 137 Spaces Moved 1190 | 84 617 105 241 94 49 Core 13 | 13 . . . . . Treads 1177 | 71 617 105 241 94 49 Legs . | . . . . . . Wheels . | . . . . . . Hover . | . . . . . . Flight . | . . . . . . Fastest Speed 50 | 50 160 160 160 160 160 Average Speed 158 | 142 160 160 160 160 160 Slowest Speed 160 | 160 160 160 160 160 160 Overloaded Moves . | . . . . . . Propulsion Burnouts . | . . . . . . Robots Hopped . | . . . . . . Cave-ins Triggered . | . . . . . . Exploration Rate (%) 32 | 4 67 30 61 22 10 Regions Visited 5 Branch Regions 3 Pre-discovered Areas . | . . . . . . Known Exits Taken . | . . . . . . Unknown Exits Taken 5 | 1 1 1 1 1 . Scrap Searched 1 | . . . . 1 . Spaces Dug . | . . . . . . Terrain Destroyed 14 | . . . . 5 9 Melee . | . . . . . . Projectile 14 | . . . . 5 9 AOE . | . . . . . . Terrain Rammed . | . . . . . . Walls Destroyed . | . . . . . . Machines Disabled . | . . . . . . Actions | -11 -10 -10 -10 -9 -8 --------- Run | Yrd Mat Min Exi Min Mat Total 1335 | 106 681 105 243 125 75 Wait 31 | 2 18 . . 8 3 Move 1185 | 83 616 104 240 93 49 Hop . | . . . . . . Pick Up 2 | 1 1 . . . . Fast Attach 16 | 6 4 . 1 1 4 Attach . | . . . . . . Detach . | . . . . . . Swap 2 | . 2 . . . . Drop 10 | . 5 . 2 . 3 Fire 73 | 14 30 . . 14 15 Melee . | . . . . . . Ram . | . . . . . . Kick . | . . . . . . Crush 8 | . 2 1 . 4 1 Escape Stasis . | . . . . . . Rewire . | . . . . . . Trap . | . . . . . . Miscellaneous 8 | . 3 . . 5 . Route ------- -11/Scrapyard -10/Materials (discovered 2 exits: [*Mat] / [*Min]) -10/Mines -10/Exiles -9/Mines (discovered 2 exits: [*Mat x2]) -8/Materials History --------- Turn | Location | Event 36 | -11/Scrapyard | Discovered new exit (range 16) 58 | -11/Scrapyard | Upgraded with Propulsion slot (x1) 58 | -11/Scrapyard | Upgraded with Utility slot (x2) 58 | -11/Scrapyard | Upgraded with Weapon slot (x1) 162 | -11/Scrapyard | Entered Materials 304 | -10/Materials | Build established: Mutant 310 | -10/Materials | Met 8R-AWN 340 | -10/Materials | Discovered new exit (range 12) 861 | -10/Materials | Central database locked down 877 | -10/Materials | Discovered new exit (range 9) 1274 | -10/Materials | Entered Mines 1276 | -10/Mines | Followed 8R-AWN into the Mines 1436 | -10/Mines | Discovered new exit (range 5) 1442 | -10/Mines | Entered Exiles 1482 | -10/Exiles | Welcomed by 8R-AWN 1508 | -10/Exiles | Met EX-HEX 1556 | -10/Exiles | Met EX-BIN 1582 | -10/Exiles | Aligned with FarCom system 1583 | -10/Exiles | Given EX-Vault access code 1636 | -10/Exiles | Opened EX-Vault 1656 | -10/Exiles | Found AWS/Thermal 1693 | -10/Exiles | Warned to stay clear of 0b10 Research branches 1741 | -10/Exiles | Met EX-DEC 1811 | -10/Exiles | Discovered new exit (range 11) 1829 | -10/Exiles | Left Exiles lab with AWS/Thermal 1829 | -10/Exiles | Entered Mines 1831 | -9/Mines | Reached level 2 1836 | -9/Mines | Upgraded with Propulsion slot (x1) 1836 | -9/Mines | Upgraded with Weapon slot (x1) 1956 | -9/Mines | Discovered new exit (range 12) 2021 | -9/Mines | Discovered new exit (range 4) 2027 | -9/Mines | Entered Materials 2029 | -8/Materials | Reached level 3 2143 | -8/Materials | Garrison activated, responded to threat 2145 | -8/Materials | Build established: Skirmisher 2147 | -8/Materials | Core integrity fell below 50% 2157 | -8/Materials | Core integrity fell below 20% 2165 | -8/Materials | Core destroyed Last Messages --------------- 02147_ K-01 Serf collects debris. 02148_ Overheating: Plasma Cannon damaged (-66). 02150_ Overheating: Plasma Cannon damaged (-76). 02150_ K-01 Serf collects debris. 02151_ Overheating: Hvy. Deuterium Engine damaged (-72). 02152_ Overheating: Matter decay (-40). 02152_ U-05 Engineer builds a Wall. 02153_ Lgt. Nuclear Core melted. 02153_ G-47 Trooper destroyed. 02153_ U-05 Engineer builds a Wall. 02156_ Pressure Siphon disabled. 02157_ Imp. Terrain Scanner broken. 02157_ Overheating: Short circuit. 02159_ Power failure, Hvy. Deuterium Engine shutdown. 02159_ G-47 Trooper destroyed. 02160_ Overheating: Lgt. Treads damaged (-19). 02161_ U-05 Engineer builds a Wall. 02162_ Overheating: Plasma Cannon damaged (-30). 02164_ K-01 Serf collects debris. 02165_ Overheating: Core damaged (-66). Map ----- +----------------------------------------------------+ | | | | | ??????????????????????????#??????????????????????? | | ?????????????????????????????????????????????????? | | ????????????????????????#????????????????????????? | | ????????? ???????????????????#???????????????????? | | ?????????????????#???????#######?????????????????? | | ????????????????????????# #?????????????????? | | ????????????????######### [ #?????????????????? | | ?????????? ????## # #?????????????????? | | ???????????????## ][ # #?????????????????? | | ????????????????#** # [ [ ##????????????????? | | ??????????? ????#[** + ##????????????????? | | ??????????????#?#]] ########?????????????????? | | ??????????? ????#]] #??????????##????????????? | | ??????????? ????##### #??????##????#?#?????????? | | ????????????????????# #??#??#??????????????????? | | ????????????????????# #??????#????#????????????? | | ????????????????????# #########????????????????? | | ????????????????????# # ?????"?????????? | | ????????############# # ?????????????????? | | ??????? # ????????????????? | | ??????? # ? ???????????????? | | ??????? g # """ ""?????????????????? | | ???????? """ """ """s # """ """????????????????? | | ??????????"" """ ""% ;@""" """ #??????w???????? | | ??????????""? """ """ %g% #??? ? ????????? | | ???????? """ """ ""%!*;;###########+???????????? | | ??????? %ua ?????????? | | ??????? a m ?????????? | | ??????????#### ^^ ^ ?????????? | | ?????????????# ^ ##??????????? | | ?????????????# k""" #???????????? | | ?????????????# """ #???????????? | | ??????????? """ a s ???????????? | | ????????? s ???????????? | | ????????? ???????????? | | ?????????? #?### #;######### ????????????? | | ?????????? ????# ##??#?#????? ????????????? | | ??????????? ??????# ##??#??#?????????????????? | | ????????????????????" #????????????????????????? | | ????????????????????# #????????????????????????? | | ??????????????????#?# #????????????????????????? | | ????????????????????# ?????????????????????????? | | ????????????????????# ?????????????????????????? | | ????????????????????? ?????????????????????????? | | ?????????????????????????????????????????????????? | | ?????????????????????????????????????????????????? | | ?????????????????????????????????????????????????? | | ?????????????????????????????????????????????????? | +----------------------------------------------------+ Best States ------------- Heat Dissipation 43 Energy Generation 18 Energy Capacity 650 Matter Stores 400 Matter Capacity 400 Sight Range 16 Terrain Scan Range 16 Terrain Scan Density 10 Evasion (%) 50 Recoil Reduction 2 Item Schematics ----------------- None Robot Schematics ------------------ None Fabricated ------------ Nothing Alien Tech Used ----------------- None Achievements -------------- None Challenges ------------ None RPGLIKE | -11 -10 -10 -10 -9 -8 --------- Run | Yrd Mat Min Exi Min Mat Levels Raised 2 | . . . . 1 1 XP Earned 7385 | 3000 575 500 350 850 2110 XP Spent 4460 | 2650 . . . 1810 . Upgrades 11 | 6 . . . 5 . Propulsion Slot 2 | 1 . . . 1 . Utility Slot 2 | 2 . . . . . Weapon Slot 2 | 1 . . . 1 . Heat Dissipation 3 | . . . . 3 . Mass Support 1 | 1 . . . . . Inventory Capacity 1 | 1 . . . . . Protomatter Created . | . . . . . . Integrity Restored 158 | . 72 . . 86 . Core 152 | . 72 . . 80 . Parts 6 | . . . . 6 . Protomatter Decayed 112 | . 112 . . . . Game ------ Seed SupersonicLaserPenetrator Manual? 0 Play Time 00:13:26 Cumulative 63.0 hours Start 2025.01.16 @ 22:54:10 End 2025.01.16 @ 23:06:14 Sessions 1 Manual Loads 0 Difficulty Rogue Special Mode Winter2019/RPGLIKE Game No. 61 Rogue 61 Adventurer 0 Explorer 0 Win Type - Total 1 Types 0/0/0/1/0/0/0/0/0 Lore% 48 Gallery% 47 Achievement% 46 Wizard Run 0 Options --------- Layout 0 ASCII 0 Keyboard 1 Movement Numpad Keybinds 0 Fullscreen 1 Font 24/Smallcaps Map View 76x56 Zoom Use 0% Tactical HUD 1 Map Filters NONE Filters NONE Steam 1 RUN: b76ac7f8-cb91-45c8-8b85-742ec409f973